[Event "German Bundesliga 2022-23"]
[Site "Germany"]
[Date "2022.10.22"]
[Round "1.10"]
[White "Bluebaum, Matthias"]
[Black "Bartel, Mateusz"]
[Result "1/2-1/2"]
[ECO "A22"]
[WhiteElo "2647"]
[BlackElo "2630"]
[Annotator "TA"]
[PlyCount "54"]
[EventDate "2022.10.21"]
[EventType "team-tourn"]
[EventCountry "GER"]
[SourceTitle "playchess.com"]
[Source "ChessBase"]
[SourceQuality "1"]
[TimeControl "40/6000+30:3000+30"]

{[%evp 9,54,70,77,76,73,68,73,64,88,85,74,78,79,66,79,83,72,88,118,85,91,97,124,37,39,34,52,0,0,0,-10,-12,0,0,-4,0,14,0,14,2,4,0,0,0,0,0,23]} 1. c4 {[%emt 0:00:03]} e5 {[%emt 0:00:28]} 2. Nc3 {[%emt 0:00:11][%cal Bb1c3,Bc3e4,Be4g3,Bg3e2][%mdl 32]} Nf6 {[%emt 0:07:31]} 3. Nf3 {[%emt 0:01:15]} e4 {[%emt 0:00:06]} 4. Ng5 {[%emt 0:01:06]} c6 {[%emt 0:00:07]} 5. Ngxe4 {[%emt 0:01:33]} Nxe4 {[%emt 0:01:30]} 6. Nxe4 {[%emt 0:00:03] A22: English Opening: 1...e5 2 Nc3 Nf6.} d5 {[%emt 0:00:06]} 7. cxd5 {[%emt 0:00:03]} cxd5 {[%emt 0:00:08] [#]} 8. Ng3 {[%emt 0:00:07] White is better.} ({Don't go for} 8. Qa4+ $2 Bd7 9. Qd4 dxe4 10. Qxe4+ Be7 $19) 8... h5 {[%emt 0:00:16] Strongly threatening ...h4.} 9. e3 {[%emt 0:00:08]} h4 {[%emt 0:00:11] [#]} 10. Ne2 {[%emt 0:00:05]} Nc6 {[%emt 0:00:30]} 11. d4 {[%emt 0:03:07]} Bf5 {[%emt 0:15:55] [#] And now ...Nb4 would win.} 12. Nc3 $146 {[%emt 0:04:22]} ({Predecessor:} 12. Bd2 h3 13. Qb3 Qd7 14. Nf4 Bd6 15. Nxh3 O-O 16. Bd3 Bxh3 17. gxh3 Rac8 18. Qxd5 {½-½ (41) Ding,L (2806)-Tari,A (2654) chess24.com INT 2022}) 12... Bb4 {[%emt 0:03:03]} 13. Bd2 {[%emt 0:03:52]} Qd7 {[%emt 0:04:50]} 14. a3 {[%emt 0:06:56]} Bxc3 {[%emt 0:02:20]} 15. Bxc3 {[%emt 0:00:07]} Kf8 {[%emt 0:07:28]} 16. Qd2 {[%emt 0:08:44]} (16. Be2 $16) 16... Rh6 $14 {[%emt 0:09:59]} 17. Bb5 {[%emt 0:15:35]} h3 {[%emt 0:09:35]} 18. gxh3 {[%emt 0:26:29]} ({White should try} 18. g3 $14) 18... Be4 $11 {[%emt 0:00:54] The position is equal.} 19. Rg1 {[%emt 0:00:31]} Rxh3 {[%emt 0:02:15]} 20. Bd3 {[%emt 0:03:24]} Qf5 {[%emt 0:07:31]} 21. Bxe4 {[%emt 0:05:13]} Qxe4 {[%emt 0:00:04]} 22. O-O-O {[%emt 0:00:05]} Rc8 {[%emt 0:11:07]} 23. Rdf1 {[%emt 0:05:31]} Rxh2 {[%emt 0:04:46]} 24. f3 {[%emt 0:05:05]} Qh7 {[%emt 0:00:40]} 25. Rg2 {[%emt 0:00:21]} Rxg2 {[%emt 0:05:57]} 26. Qxg2 {[%emt 0:00:02] Rh1 is the strong threat.} Qd3 {[%emt 0:00:11] White must now prevent ...Na5.} 27. Re1 {[%emt 0:02:22]} Re8 {[%emt 0:01:00] Weighted Error Value: White=0.12 (very precise) /Black=0.08 (flawless)} 1/2-1/2

[Event "German Bundesliga 2022-23"]
[Site "Germany"]
[Date "2022.10.23"]
[Round "1.10"]
[White "Bjerre, Jonas Buhl"]
[Black "Keymer, Vincent"]
[Result "1/2-1/2"]
[ECO "B11"]
[WhiteElo "2612"]
[BlackElo "2700"]
[Annotator "ChessBase"]
[PlyCount "128"]
[EventDate "2022.10.21"]
[EventType "team-tourn"]
[EventCountry "GER"]
[SourceTitle "playchess.com"]
[Source "ChessBase"]
[SourceQuality "1"]
[TimeControl "40/6000+30:3000+30"]

1. e4 {[%emt 0:00:05]} c6 {[%emt 0:00:39]} 2. Nf3 {[%emt 0:00:54]} d5 {[%emt 0:00:04]} 3. Nc3 {[%emt 0:00:21]} dxe4 {[%emt 0:00:15]} 4. Nxe4 {[%emt 0:00:10]} Nf6 {[%emt 0:00:02]} 5. Qe2 {[%emt 0:01:14]} Nxe4 {[%emt 0:00:06]} 6. Qxe4 {[%emt 0:00:06]} Nd7 {[%emt 0:00:03]} 7. d4 {[%emt 0:01:02]} Nf6 {[%emt 0:00:05]} 8. Qd3 {[%emt 0:00:32]} g6 {[%emt 0:00:06]} 9. Be2 {[%emt 0:00:53]} Bg7 {[%emt 0:00:04]} 10. O-O {[%emt 0:00:44]} O-O {[%emt 0:00:33]} 11. Re1 {[%emt 0:04:17]} a5 {[%emt 0:06:47]} 12. a4 {[%emt 0:02:06]} Qb6 {[%emt 0:12:12]} 13. c3 {[%emt 0:06:56]} Bf5 {[%emt 0:11:09]} 14. Qd1 {[%emt 0:01:45]} Bg4 {[%emt 0:07:44]} 15. Ne5 {[%emt 0:05:18]} Bxe2 {[%emt 0:01:32]} 16. Qxe2 {[%emt 0:00:10]} Rad8 {[%emt 0:08:49]} 17. Bf4 {[%emt 0:08:46]} Nh5 {[%emt 0:10:46]} 18. Bg5 {[%emt 0:07:51]} Qc7 {[%emt 0:02:41]} 19. Ng4 {[%emt 0:08:35]} Rfe8 {[%emt 0:01:19]} 20. Qf3 {[%emt 0:04:00]} Rd5 {[%emt 0:03:06]} 21. h4 {[%emt 0:03:26]} Rf5 {[%emt 0:08:03]} 22. Qe4 {[%emt 0:03:46]} Rd5 {[%emt 0:01:26]} 23. Qf3 {[%emt 0:09:14]} Rf5 {[%emt 0:01:34]} 24. Qd1 {[%emt 0:06:21]} Rd5 {[%emt 0:01:44]} 25. Ne3 {[%emt 0:01:21]} Rd7 {[%emt 0:02:21]} 26. Nf5 {[%emt 0:01:04]} gxf5 {[%emt 0:03:23]} 27. Qxh5 {[%emt 0:00:11]} Qd6 {[%emt 0:00:06]} 28. Rad1 {[%emt 0:06:33]} Qg6 {[%emt 0:02:07]} 29. Qe2 {[%emt 0:02:54]} h6 {[%emt 0:03:58]} 30. Bc1 {[%emt 0:00:04]} Qg4 {[%emt 0:01:20]} 31. Qc2 {[%emt 0:00:48]} Rd6 {[%emt 0:04:07]} 32. Rd3 {[%emt 0:02:01]} f4 {[%emt 0:02:25]} 33. Qd1 {[%emt 0:05:18]} Rg6 {[%emt 0:04:57]} 34. Qxg4 {[%emt 0:02:29]} Rxg4 {[%emt 0:00:02]} 35. Rh3 {[%emt 0:01:31]} f3 {[%emt 0:09:03]} 36. Rxf3 {[%emt 0:01:22]} Rxh4 {[%emt 0:00:06]} 37. Rf5 {[%emt 0:00:59]} b6 {[%emt 0:01:20]} 38. f3 {[%emt 0:04:55]} e6 {[%emt 0:00:20]} 39. g3 {[%emt 0:03:10]} Rc8 {[%emt 0:01:41]} 40. Rxf7 {[%emt 0:03:27]} Kxf7 {[%emt 0:00:45]} 41. gxh4 {[%emt 0:50:04]} b5 {[%emt 0:12:02]} 42. Bf4 {[%emt 0:00:00]} bxa4 {[%emt 0:04:48]} 43. Ra1 {[%emt 0:00:00]} c5 {[%emt 0:00:22]} 44. dxc5 {[%emt 0:00:00]} Rxc5 {[%emt 0:00:07]} 45. Rxa4 {[%emt 0:00:00]} Rb5 {[%emt 0:00:04]} 46. Ra2 {[%emt 0:00:00]} h5 {[%emt 0:01:48]} 47. Kf2 {[%emt 0:00:00]} Bf6 {[%emt 0:05:11]} 48. Kg3 {[%emt 0:00:00]} Bd8 {[%emt 0:02:14]} 49. Bc1 {[%emt 0:00:00]} Rd5 {[%emt 0:07:16]} 50. Ra4 {[%emt 0:00:00]} Rd1 {[%emt 0:01:08]} 51. Bg5 {[%emt 0:00:00]} Bb6 {[%emt 0:06:45]} 52. Ra3 {[%emt 0:00:00]} Rg1+ {[%emt 0:03:43]} 53. Kh2 {[%emt 0:00:00]} Rb1 {[%emt 0:02:47]} 54. Rb3 {[%emt 0:00:00]} Bg1+ {[%emt 0:00:23]} 55. Kg2 {[%emt 0:00:00]} a4 {[%emt 0:00:04]} 56. Ra3 {[%emt 0:00:00]} Bc5 {[%emt 0:00:22]} 57. Ra2 {[%emt 0:00:00]} e5 {[%emt 0:01:35]} 58. Rxa4 {[%emt 0:03:19]} Rxb2+ {[%emt 0:00:04]} 59. Kg3 {[%emt 0:00:31]} Rc2 {[%emt 0:01:02]} 60. Rc4 {[%emt 0:02:27]} Bd6 {[%emt 0:01:51]} 61. f4 {[%emt 0:02:11]} Ke6 {[%emt 0:00:26]} 62. fxe5 {[%emt 0:04:22]} Bxe5+ {[%emt 0:00:06]} 63. Kf3 {[%emt 0:00:28]} Kf5 {[%emt 0:00:20]} 64. Rc5 {[%emt 0:00:48]} Rxc3+ {[%emt 0:00:04]} 1/2-1/2

[Event "German Bundesliga 2022-23"]
[Site "Germany"]
[Date "2022.10.22"]
[Round "1.10"]
[White "Sedlak, Nikola"]
[Black "Plat, Vojtech"]
[Result "1/2-1/2"]
[ECO "D02"]
[WhiteElo "2472"]
[BlackElo "2546"]
[Annotator "TA"]
[PlyCount "42"]
[EventDate "2022.10.21"]
[EventType "team-tourn"]
[EventCountry "GER"]
[SourceTitle "playchess.com"]
[Source "ChessBase"]
[SourceQuality "1"]
[TimeControl "40/6000+30:3000+30"]

{[%evp 13,42,11,8,14,31,16,10,0,0,0,0,0,3,0,6,0,0,0,0,0,16,0,0,0,6,0,0,0,0,0,10]} 1. Nf3 {[%emt 0:00:06]} g6 {[%emt 0:00:10]} 2. g3 {[%emt 0:00:11]} Bg7 {[%emt 0:00:05]} 3. d4 {[%emt 0:00:07]} Nf6 {[%emt 0:00:22]} 4. Bg2 {[%emt 0:00:16]} O-O {[%emt 0:00:08]} 5. O-O {[%emt 0:00:07]} d5 {[%emt 0:00:02]} 6. c3 {[%emt 0:00:36]} Bf5 {[%emt 0:00:51]} 7. Nbd2 {[%emt 0:03:37]} c6 {[%emt 0:00:41]} 8. Re1 {[%emt 0:01:02] D02: 1 d4 d5 2 Nf3 sidelines, including 2...Nf6 3 g3 and 2...Nf6 3 Bf4.} Qc8 {[%emt 0:06:57]} 9. Nh4 {[%emt 0:07:50]} Bh3 {[%emt 0:01:46] The position is equal.} 10. e4 {[%emt 0:03:33]} (10. Bxh3 {feels hotter.} Qxh3 11. e4 dxe4 12. Nxe4 Nxe4 13. Rxe4 e6 14. Qe2) 10... Bxg2 {[%emt 0:02:20]} 11. Nxg2 {[%emt 0:01:41]} dxe4 {[%emt 0:05:25]} 12. Nxe4 {[%emt 0:00:09] [#]} Nxe4 $146 {[%emt 0:02:29]} ({Predecessor:} 12... Na6 13. Nxf6+ Bxf6 14. Bh6 Rd8 15. Qf3 Qh3 16. Bf4 Rd7 17. Be5 Bxe5 18. Rxe5 Nc7 {1-0 (45) Aggelis,N (2271)-Klein,D (2135) Herceg Novi 2008}) 13. Rxe4 {[%emt 0:00:07]} e6 {[%emt 0:00:27]} 14. Bg5 {[%emt 0:01:28]} Nd7 {[%emt 0:04:25]} 15. Qd2 {[%emt 0:00:57]} Re8 {[%emt 0:04:22]} 16. Rae1 {[%emt 0:05:17]} Nf6 {[%emt 0:12:46]} 17. Bxf6 {[%emt 0:02:43]} Bxf6 {[%emt 0:00:08]} 18. Nf4 {[%emt 0:00:33]} Qd7 {[%emt 0:03:04]} 19. Nd3 {[%emt 0:03:37]} Rad8 {[%emt 0:01:03]} 20. Qe2 {[%emt 0:03:43]} Bg7 {[%emt 0:06:15]} 21. h4 {[%emt 0:00:54]} b6 {[%emt 0:01:52] An uneventful encounter.  Weighted Error Value: White=0.04 (flawless) /Black=0.03 (flawless)} 1/2-1/2

[Event "German Bundesliga 2022-23"]
[Site "Germany"]
[Date "2022.10.23"]
[Round "1.11"]
[White "Adams, Michael"]
[Black "Yuffa, Daniil"]
[Result "1/2-1/2"]
[ECO "B51"]
[WhiteElo "2689"]
[BlackElo "2601"]
[Annotator "ChessBase"]
[PlyCount "83"]
[EventDate "2022.10.21"]
[EventType "team-tourn"]
[EventCountry "GER"]
[SourceTitle "playchess.com"]
[Source "ChessBase"]
[SourceQuality "1"]
[TimeControl "40/6000+30:3000+30"]

1. e4 c5 2. Nf3 d6 3. Bb5+ Nd7 4. a4 Ngf6 5. Nc3 a6 6. Be2 b6 7. d4 cxd4 8. Qxd4 Bb7 9. O-O e5 10. Qe3 {[%emt 0:15:00]} Be7 {[%emt 0:15:00]} 11. Rd1 {[%emt 0:00:30]} Qc7 {[%emt 0:00:30]} 12. b3 {[%emt 0:00:30]} Nc5 {[%emt 0:00:30]} 13. Nd2 {[%emt 0:00:30]} O-O {[%emt 0:00:30]} 14. Ba3 {[%emt 0:00:30]} Rad8 {[%emt 0:00:30]} 15. Bc4 {[%emt 0:00:30]} Ne6 {[%emt 0:00:30]} 16. Rac1 {[%emt 0:00:30]} Nf4 {[%emt 0:00:30]} 17. Qe1 {[%emt 0:00:30]} Rfe8 {[%emt 0:00:30]} 18. Qf1 {[%emt 0:00:30]} Qc8 {[%emt 0:00:30]} 19. f3 {[%emt 0:00:30]} d5 {[%emt 0:00:30]} 20. Bxe7 {[%emt 0:00:30]} Rxe7 {[%emt 0:00:30]} 21. exd5 {[%emt 0:00:30]} Bxd5 {[%emt 0:00:30]} 22. Nde4 {[%emt 0:00:30]} Nxe4 {[%emt 0:00:30]} 23. Nxe4 {[%emt 0:00:30]} a5 {[%emt 0:00:30]} 24. g3 {[%emt 0:00:30]} Bxc4 {[%emt 0:00:30]} 25. Qxc4 {[%emt 0:00:30]} Rc7 {[%emt 0:00:30]} 26. Rxd8+ {[%emt 0:00:30]} Qxd8 {[%emt 0:00:30]} 27. Qf1 {[%emt 0:00:30]} Qd4+ {[%emt 0:00:30]} 28. Kh1 {[%emt 0:00:30]} Ne6 {[%emt 0:00:30]} 29. c3 {[%emt 0:00:30]} Qd5 {[%emt 0:00:30]} 30. Qb5 {[%emt 0:00:30]} Qxb5 {[%emt 0:00:30]} 31. axb5 {[%emt 0:00:30]} f5 {[%emt 0:00:30]} 32. Nd6 {[%emt 0:00:30]} Nd4 {[%emt 0:00:30]} 33. b4 {[%emt 0:00:30]} a4 {[%emt 0:00:30]} 34. c4 {[%emt 0:00:30]} Nb3 {[%emt 0:00:30]} 35. Rc2 {[%emt 0:00:30]} Rd7 {[%emt 0:00:30]} 36. c5 {[%emt 0:00:30]} bxc5 {[%emt 0:00:30]} 37. bxc5 {[%emt 0:00:30]} Nxc5 {[%emt 0:00:30]} 38. Rxc5 {[%emt 0:00:30]} Rxd6 {[%emt 0:00:30]} 39. Rxe5 {[%emt 0:00:30]} a3 {[%emt 0:00:30]} 40. Re8+ {[%emt 0:00:30]} Kf7 {[%emt 0:00:30]} 41. Ra8 {[%emt 0:50:30]} Rb6 {[%emt 0:50:30]} 42. Ra5 {[%emt 0:00:30]} 1/2-1/2

[Event "German Bundesliga 2022-23"]
[Site "Germany"]
[Date "2022.10.22"]
[Round "1.11"]
[White "Michalik, Peter"]
[Black "Heimann, Andreas"]
[Result "1/2-1/2"]
[WhiteElo "2558"]
[BlackElo "2573"]
[Annotator "TA"]
[PlyCount "17"]
[EventDate "2022.10.21"]
[EventType "team-tourn"]
[EventCountry "GER"]
[SourceTitle "playchess.com"]
[Source "ChessBase"]
[SourceQuality "1"]
[TimeControl "40/6000+30:3000+30"]

{[%evp 13,17,16,24,-1288,295,-29]} 1. e4 {[%emt 0:00:04]} e5 {[%emt 0:00:05]} 2. Nf3 {[%emt 0:00:05]} Nc6 {[%emt 0:00:03]} 3. Bb5 {[%emt 0:00:07]} Nf6 {[%emt 0:00:05]} 4. O-O {[%emt 0:00:12]} Nxe4 {[%emt 0:00:04]} 5. d4 {[%emt 0:00:06]} Nd6 {[%emt 0:00:07]} 6. Bxc6 {[%emt 0:00:07]} dxc6 {[%emt 0:00:03]} 7. dxe5 {[%emt 0:00:07]} Nf5 {[%emt 0:00:04] [#]} 8. Qd4 $146 {[%emt 0:00:07][%mdl 8192] [#] C67: Ruy Lopez: Berlin Defence: 4 0-0 Nxe4.} ({Predecessor:} 8. Qxd8+ Kxd8 9. Nc3 Ke8 10. h3 h5 11. Bf4 Be7 12. Rad1 Nh4 13. Nd4 Nf5 14. Nce2 g5 15. Bh2 Rh6 16. Rfe1 Rg6 17. Nxf5 Bxf5 18. Nd4 {½-½ (43) Vachier Lagrave,M (2757)-So,W (2771) Saint Louis 2022}) 8... Qd6 $4 {[%mdl 8192]} (8... Nxd4 $19 {avoids the disaster.} 9. Nxd4 Qxd4) 9. Qxd6 $2 {[%emt 0:00:10]} ({Only move:} 9. exd6 $18 Nxd4 10. Nxd4) 1/2-1/2

[Event "German Bundesliga 2022-23"]
[Site "Germany"]
[Date "2022.10.22"]
[Round "1.11"]
[White "Pavlidis, Antonios"]
[Black "Delchev, Aleksander"]
[Result "1/2-1/2"]
[ECO "C77"]
[WhiteElo "2550"]
[BlackElo "2503"]
[Annotator "TA"]
[PlyCount "73"]
[EventDate "2022.10.21"]
[EventType "team-tourn"]
[EventCountry "GER"]
[SourceTitle "playchess.com"]
[Source "ChessBase"]
[SourceQuality "1"]
[TimeControl "40/6000+30:3000+30"]

{[%evp 16,73,10,0,20,20,19,11,21,8,16,16,16,5,11,5,18,14,11,6,10,7,7,7,11,5,7,0,1,4,25,35,28,0,21,3,54,37,36,33,33,0,0,0,0,0,0,0,0,0,0,0,0,0,0,0,0,0,0,0]} 1. e4 {[%emt 0:00:03]} e5 {[%emt 0:00:11]} 2. Nf3 {[%emt 0:00:13]} Nc6 {[%emt 0:00:05]} 3. Bb5 {[%emt 0:00:11][%cal Bf1b5,Bb5a4,Ba4b3][%mdl 32]} a6 {[%emt 0:00:05]} 4. Ba4 {[%emt 0:00:10]} Nf6 {[%emt 0:00:05]} 5. O-O {[%emt 0:00:20]} Be7 {[%emt 0:00:05]} 6. d3 {[%emt 0:01:13]} b5 {[%emt 0:00:07]} 7. Bb3 {[%emt 0:00:06]} d6 {[%emt 0:00:03]} 8. a3 {[%emt 0:00:46]} O-O {[%emt 0:00:09]} 9. Nc3 {[%emt 0:00:51]} Na5 {[%emt 0:00:06] C77: Ruy Lopez: 3...a6 4 Ba4 Nf6, unusual lines.} 10. Ba2 {[%emt 0:01:01]} Be6 {[%emt 0:00:10]} 11. b4 {[%emt 0:05:02]} Bxa2 {[%emt 0:00:11]} 12. Nxa2 {[%emt 0:00:34]} Nc6 {[%emt 0:00:04]} 13. c4 {[%emt 0:00:41]} Nd4 {[%emt 0:00:05]} 14. Nc3 {[%emt 0:00:41]} c6 {[%emt 0:00:18]} 15. Be3 {[%emt 0:13:11]} Nxf3+ {[%emt 0:00:09]} 16. Qxf3 {[%emt 0:00:07]} Qc8 {[%emt 0:00:19]} 17. h3 {[%emt 0:03:01]} Qe6 {[%emt 0:00:16]} 18. Rfc1 {[%emt 0:00:12] [#]} Rab8 $146 {[%emt 0:28:28]} ({Predecessor:} 18... h6 19. a4 a5 20. axb5 axb4 21. Na4 cxb5 22. cxb5 Qb3 23. Qd1 Qxd1+ 24. Rxd1 Rfb8 {½-½ (37) Balogh,C (2593)-Ragger,M (2674) Austria 2020}) 19. Rab1 {[%emt 0:14:29]} Rb7 {[%emt 0:04:49]} 20. cxb5 {[%emt 0:12:28]} axb5 {[%emt 0:01:28]} 21. a4 {[%emt 0:00:14]} bxa4 {[%emt 0:46:05]} 22. Nxa4 {[%emt 0:00:32]} d5 {[%emt 0:00:48]} 23. Nc5 {[%emt 0:01:46]} Bxc5 {[%emt 0:00:17]} 24. Bxc5 {[%emt 0:00:05]} Rfb8 {[%emt 0:01:15]} 25. Ra1 {[%emt 0:00:26]} dxe4 {[%emt 0:03:52]} (25... Nd7 $11) 26. dxe4 $14 {[%emt 0:00:16]} Nd7 {[%emt 0:00:03]} 27. Ra6 {[%emt 0:02:19]} h6 {[%emt 0:07:11]} 28. Kh2 {[%emt 0:09:21]} Nxc5 {[%emt 0:00:46] The position is equal.} 29. Rxc5 {[%emt 0:00:13]} Rb6 {[%emt 0:02:42]} 30. Rxb6 {[%emt 0:05:02]} Rxb6 $11 {[%emt 0:01:04][%cal Bb8b6,Bb6a6,Ba6a1][%mdl 4128] Endgame KQR-KQR} 31. Qc3 {[%emt 0:00:10]} Qd6 {[%emt 0:03:14]} 32. Rc4 {[%emt 0:03:43]} Kh7 {[%emt 0:02:12]} 33. g3 {[%emt 0:04:37]} Ra6 {[%emt 0:06:18]} 34. Kg2 {[%emt 0:00:23]} Qd1 {[%emt 0:01:39] [#] White must now prevent ...Ra1.} 35. Qxe5 {[%emt 0:00:30] aiming for Qf5+.} Ra1 {[%emt 0:00:02][%csl Ga1][%cal Rd1h1]} 36. Qf5+ {[%emt 0:00:05]} Kg8 {[%emt 0:00:03][%csl Ga1][%cal Rd1h1]} 37. Qc8+ {[%emt 0:00:07] Weighted Error Value: White=0.04 (flawless) /Black=0.06 (flawless)} 1/2-1/2

[Event "German Bundesliga 2022-23"]
[Site "Germany"]
[Date "2022.10.22"]
[Round "1.12"]
[White "Kozul, Zdenko"]
[Black "Vogel, Roven"]
[Result "1-0"]
[ECO "D30"]
[WhiteElo "2549"]
[BlackElo "2463"]
[Annotator "RC"]
[PlyCount "119"]
[EventDate "2022.10.21"]
[EventType "team-tourn"]
[EventCountry "GER"]
[SourceTitle "playchess.com"]
[Source "ChessBase"]
[SourceQuality "1"]
[TimeControl "40/6000+30:3000+30"]

1. d4 {[%emt 0:00:05]} d5 {[%emt 0:00:07]} 2. c4 {[%emt 0:00:08]} c6 {[%emt 0:00:06]} 3. Nf3 {[%emt 0:01:10]} Nf6 {[%emt 0:00:07]} 4. e3 {[%emt 0:01:03]} e6 {[%emt 0:01:15]} 5. Bd3 {[%emt 0:01:30]} b6 {[%emt 0:00:32]} 6. O-O {[%emt 0:02:38]} Bb7 {[%emt 0:00:32]} 7. Nc3 {[%emt 0:01:34]} Nbd7 {[%emt 0:00:31]} 8. b3 {[%emt 0:05:40]} Bd6 {[%emt 0:01:06]} 9. Bb2 {[%emt 0:01:46]} O-O {[%emt 0:00:43]} 10. Re1 {[%emt 0:27:12]} Qe7 {[%emt 0:11:07]} 11. Qb1 {[%emt 0:11:43]} c5 {[%emt 0:04:27]} 12. cxd5 {[%emt 0:01:10]} exd5 {[%emt 0:02:24]} 13. e4 {[%emt 0:00:30]} dxe4 {[%emt 0:06:28]} 14. Nxe4 {[%emt 0:00:28]} Nxe4 {[%emt 0:02:16]} 15. Bxe4 {[%emt 0:00:07]} Bxe4 {[%emt 0:00:06]} 16. Rxe4 {[%emt 0:00:30]} Qd8 {[%emt 0:00:08]} 17. Rh4 {[%emt 0:11:45]} g6 {[%emt 0:03:27]} 18. Qc1 {[%emt 0:04:32]} Qe7 {[%emt 0:01:30]} 19. dxc5 {[%emt 0:06:12]} Bxc5 {[%emt 0:10:22]} 20. Qc3 {[%emt 0:13:48]} f6 {[%emt 0:00:21]} 21. b4 {[%emt 0:00:23]} Bd6 {[%emt 0:00:33]} 22. Qb3+ {[%emt 0:00:30]} Rf7 {[%emt 0:05:17]} 23. Rd4 {[%emt 0:01:10]} Ne5 {[%emt 0:03:45]} 24. Rad1 {[%emt 0:00:14]} Rd8 {[%emt 0:06:15]} 25. Nxe5 {[%emt 0:02:12]} fxe5 {[%emt 0:00:07]} 26. Rd5 {[%emt 0:00:24]} Bc7 {[%emt 0:02:08]} 27. Rxd8+ {[%emt 0:01:05]} Bxd8 {[%emt 0:00:07]} 28. b5 {[%emt 0:00:24]} Bc7 {[%emt 0:09:26]} 29. Qd5 {[%emt 0:00:23]} Qc5 {[%emt 0:04:47]} 30. Qxc5 {[%emt 0:01:21]} bxc5 {[%emt 0:00:03]} 31. Kf1 {[%emt 0:00:41]} c4 {[%emt 0:10:51]} 32. Rc1 {[%emt 0:00:31]} Bb6 {[%emt 0:03:07]} 33. f3 {[%emt 0:03:23]} Rc7 {[%emt 0:13:02]} 34. Bxe5 {[%emt 0:01:14]} Rc5 {[%emt 0:00:07]} 35. f4 {[%emt 0:00:56]} Rxb5 {[%emt 0:01:38]} 36. Rxc4 {[%emt 0:00:27]} Rb1+ {[%emt 0:03:43]} 37. Ke2 {[%emt 0:00:05]} Kf7 {[%emt 0:03:11]} 38. Rc2 {[%emt 0:04:38]} Rg1 {[%emt 0:02:28]} 39. Kf3 {[%emt 0:00:47]} Rf1+ {[%emt 0:01:09]} 40. Kg4 {[%emt 0:00:38]} h5+ {[%emt 0:00:38]} 41. Kg5 {[%emt 0:50:50]} Rf2 {[%emt 0:11:11]} 42. Rxf2 {[%emt 0:00:00]} Bxf2 {[%emt 0:00:14]} 43. f5 {[%emt 0:00:00]} gxf5 {[%emt 0:00:54]} 44. Kxf5 {[%emt 0:00:00]} Bh4 {[%emt 0:02:48]} 45. h3 {[%emt 0:00:00]} Bd8 {[%emt 0:04:32]} 46. Bf4 {[%emt 0:00:00]} Bf6 {[%emt 0:01:00]} 47. Bg5 {[%emt 0:00:00]} Bd4 {[%emt 0:02:50]} 48. Ke4 {[%emt 0:00:00]} Bc3 {[%emt 0:01:12]} 49. Be3 {[%emt 0:00:00]} a6 {[%emt 0:00:20]} 50. Kd5 {[%emt 0:00:00]} Be1 {[%emt 0:07:12]} 51. a4 {[%emt 0:00:00]} Kf6 {[%emt 0:00:00]} 52. Kc6 {[%emt 0:00:00]} h4 {[%emt 0:00:00]} 53. Kb6 {[%emt 0:00:00]} a5 {[%emt 0:00:00]} 54. Kb5 {[%emt 0:00:00]} Kf5 {[%emt 0:00:00]} 55. Bb6 {[%emt 0:00:00]} Kf4 {[%emt 0:00:00]} 56. Bxa5 {[%emt 0:00:00]} Bxa5 {[%emt 0:00:00]} 57. Kxa5 {[%emt 0:00:00]} Kg3 {[%emt 0:00:00]} 58. Kb5 {[%emt 0:00:00]} Kxg2 {[%emt 0:00:00]} 59. a5 {[%emt 0:00:00]} Kxh3 {[%emt 0:00:00]} 60. a6 {[%emt 0:00:00]} 1-0